Department Family,Entity,Date,Expense Type,Expense Area,Supplier,SME,Transaction Number, Amount ,Description,Expenditure Type
HM Land Registry,HM Land Registry,08/08/2018,Stationery National Contracts,Birkenhead Office,Banner Group Limited,Large,1223007," 2,199.02 ",Stationery,Administration
HM Land Registry,HM Land Registry,08/08/2018,Stationery National Contracts,Central Facilities Management Team,Banner Group Limited,Large,1223007, 38.39 ,Stationery,Administration
HM Land Registry,HM Land Registry,08/08/2018,Stationery National Contracts,Central Operations Group,Banner Group Limited,Large,1223007, 194.40 ,Stationery,Administration
HM Land Registry,HM Land Registry,08/08/2018,Stationery National Contracts,Chief Executives Office,Banner Group Limited,Large,1223007, 123.60 ,Stationery,Administration
HM Land Registry,HM Land Registry,08/08/2018,Stationery National Contracts,Coventry Office,Banner Group Limited,Large,1223007, 286.39 ,Stationery,Administration
HM Land Registry,HM Land Registry,08/08/2018,Stationery National Contracts,Croydon Office,Banner Group Limited,Large,1223007, 467.34 ,Stationery,Administration
HM Land Registry,HM Land Registry,08/08/2018,Stationery National Contracts,Director of Information Systems,Banner Group Limited,Large,1223007, 938.86 ,Stationery,Administration
HM Land Registry,HM Land Registry,08/08/2018,Stationery National Contracts,Durham Office,Banner Group Limited,Large,1223007," 2,597.08 ",Stationery,Administration
HM Land Registry,HM Land Registry,08/08/2018,Stationery National Contracts,Finance Group,Banner Group Limited,Large,1223007, 106.31 ,Stationery,Administration
HM Land Registry,HM Land Registry,08/08/2018,Stationery National Contracts,Fylde Office,Banner Group Limited,Large,1223007," 1,082.94 ",Stationery,Administration
HM Land Registry,HM Land Registry,08/08/2018,Stationery National Contracts,Gloucester Office,Banner Group Limited,Large,1223007," 1,191.22 ",Stationery,Administration
HM Land Registry,HM Land Registry,08/08/2018,Stationery National Contracts,Hull Office,Banner Group Limited,Large,1223007," 5,425.65 ",Stationery,Administration
HM Land Registry,HM Land Registry,08/08/2018,Stationery National Contracts,IS Service Delivery,Banner Group Limited,Large,1223007," 7,598.74 ",Stationery,Administration
HM Land Registry,HM Land Registry,08/08/2018,Stationery National Contracts,Land Charges,Banner Group Limited,Large,1223007, 189.44 ,Stationery,Administration
HM Land Registry,HM Land Registry,08/08/2018,Stationery National Contracts,Leicester Office,Banner Group Limited,Large,1223007, 730.24 ,Stationery,Administration
HM Land Registry,HM Land Registry,08/08/2018,Stationery National Contracts,Nottingham Office,Banner Group Limited,Large,1223007, 751.16 ,Stationery,Administration
HM Land Registry,HM Land Registry,08/08/2018,Stationery National Contracts,Peterborough Office,Banner Group Limited,Large,1223007, 871.64 ,Stationery,Administration
HM Land Registry,HM Land Registry,08/08/2018,Stationery National Contracts,Plymouth Office,Banner Group Limited,Large,1223007, 818.90 ,Stationery,Administration
HM Land Registry,HM Land Registry,08/08/2018,Stationery National Contracts,Projects and Programme Centre,Banner Group Limited,Large,1223007, 100.30 ,Stationery,Administration
HM Land Registry,HM Land Registry,08/08/2018,Stationery National Contracts,Strategy Team,Banner Group Limited,Large,1223007, 39.73 ,Stationery,Administration
HM Land Registry,HM Land Registry,08/08/2018,Stationery National Contracts,Telford Office,Banner Group Limited,Large,1223007, 421.04 ,Stationery,Administration
HM Land Registry,HM Land Registry,08/08/2018,Stationery National Contracts,Wales Office,Banner Group Limited,Large,1223007," 3,027.45 ",Stationery,Administration
HM Land Registry,HM Land Registry,08/08/2018,Stationery National Contracts,Weymouth Office,Banner Group Limited,Large,1223007, 623.76 ,Stationery,Administration
HM Land Registry,HM Land Registry,08/08/2018,Stationery National Contracts,Independent Complaints Reviewer,Banner Group Limited,Large,1223007, 25.15 ,Stationery,Administration
HM Land Registry,HM Land Registry,23/08/2018,National Recruitment,HR Operations,Cabinet Office,Large,1224169," 34,776.80 ",National Recruitment,Administration
HM Land Registry,HM Land Registry,08/08/2018,Computer Equipment Maintenance,IS Service Delivery,CGI IT UK Limited,Large,1222857," 61,500.00 ",Computer Equipment Maintenance,Administration
HM Land Registry,HM Land Registry,10/08/2018,Computer Equipment Maintenance,IS Service Delivery,CGI IT UK Limited,Large,1223305," 61,500.00 ",Computer Equipment Maintenance,Administration
HM Land Registry,HM Land Registry,28/08/2018,Rates Payable,Wales Office,City & County of Swansea,Large,1209129," 23,259.00 ",Rates Payable,Administration
HM Land Registry,HM Land Registry,17/08/2018,Provisions Account,Balance Sheet,Commercial Estates Group Ltd,SME,1222058," 65,104.37 ",Delapidations Settlement,Administration
HM Land Registry,HM Land Registry,02/08/2018,Computer Equipment Non HP Licences,IS Service Delivery,Convergent Network Solutions Ltd,Large,1222374," 119,340.00 ",Computer Equipment Non HP Licences,Administration
HM Land Registry,HM Land Registry,07/08/2018,Travel & Subsistence General Duty,Business Development,Corporate Travel Management (North of England) Ltd,SME,1222845, 355.70 ,Travel & Subsistence,Administration
HM Land Registry,HM Land Registry,07/08/2018,Travel & Subsistence General Duty,Central Facilities Management Team,Corporate Travel Management (North of England) Ltd,SME,1222845," 1,409.19 ",Travel & Subsistence,Administration
HM Land Registry,HM Land Registry,07/08/2018,Travel & Subsistence General Duty,Central Operations Group,Corporate Travel Management (North of England) Ltd,SME,1222845, 373.10 ,Travel & Subsistence,Administration
HM Land Registry,HM Land Registry,07/08/2018,Travel & Subsistence General Duty,Chief Executives Office,Corporate Travel Management (North of England) Ltd,SME,1222845, 629.72 ,Travel & Subsistence,Administration
HM Land Registry,HM Land Registry,07/08/2018,Travel & Subsistence General Duty,Commercial & Customer Strategy & Performance,Corporate Travel Management (North of England) Ltd,SME,1222845, 243.40 ,Travel & Subsistence,Administration
HM Land Registry,HM Land Registry,07/08/2018,Travel & Subsistence General Duty,Commercial Director,Corporate Travel Management (North of England) Ltd,SME,1222845, 652.50 ,Travel & Subsistence,Administration
HM Land Registry,HM Land Registry,07/08/2018,Travel & Subsistence General Duty,Corporate Legal Services,Corporate Travel Management (North of England) Ltd,SME,1222845, 966.30 ,Travel & Subsistence,Administration
HM Land Registry,HM Land Registry,07/08/2018,Travel & Subsistence Dual Workplace,Corporate Legal Services,Corporate Travel Management (North of England) Ltd,SME,1222845, 45.50 ,Travel & Subsistence,Administration
HM Land Registry,HM Land Registry,07/08/2018,Travel & Subsistence General Duty,Croydon Office,Corporate Travel Management (North of England) Ltd,SME,1222845, 754.20 ,Travel & Subsistence,Administration
HM Land Registry,HM Land Registry,07/08/2018,Travel & Subsistence General Duty,Data Group,Corporate Travel Management (North of England) Ltd,SME,1222845, 963.70 ,Travel & Subsistence,Administration
HM Land Registry,HM Land Registry,07/08/2018,Travel & Subsistence General Duty,Dir: (Statutory) Digital Services,Corporate Travel Management (North of England) Ltd,SME,1222845," 3,425.53 ",Travel & Subsistence,Administration
HM Land Registry,HM Land Registry,07/08/2018,Travel & Subsistence General Duty,Dir: Operations,Corporate Travel Management (North of England) Ltd,SME,1222845," 1,355.70 ",Travel & Subsistence,Administration
HM Land Registry,HM Land Registry,07/08/2018,Travel & Subsistence General Duty,Director of Information Systems,Corporate Travel Management (North of England) Ltd,SME,1222845," 3,847.91 ",Travel & Subsistence,Administration
HM Land Registry,HM Land Registry,07/08/2018,Travel & Subsistence General Duty,Director of Operations,Corporate Travel Management (North of England) Ltd,SME,1222845,-23.75 ,Travel & Subsistence,Administration
HM Land Registry,HM Land Registry,07/08/2018,Travel & Subsistence General Duty,Durham Office,Corporate Travel Management (North of England) Ltd,SME,1222845,-14.60 ,Travel & Subsistence,Administration
HM Land Registry,HM Land Registry,07/08/2018,Travel & Subsistence Dual Workplace,Durham Office,Corporate Travel Management (North of England) Ltd,SME,1222845,-105.85 ,Travel & Subsistence,Administration
HM Land Registry,HM Land Registry,07/08/2018,Travel & Subsistence General Duty,Forward Scanning,Corporate Travel Management (North of England) Ltd,SME,1222845, 80.90 ,Travel & Subsistence,Administration
HM Land Registry,HM Land Registry,07/08/2018,Travel & Subsistence General Duty,Gloucester Office,Corporate Travel Management (North of England) Ltd,SME,1222845, 141.80 ,Travel & Subsistence,Administration
HM Land Registry,HM Land Registry,07/08/2018,Travel & Subsistence General Duty,HR Group,Corporate Travel Management (North of England) Ltd,SME,1222845," 1,555.30 ",Travel & Subsistence,Administration
HM Land Registry,HM Land Registry,07/08/2018,Travel & Subsistence General Duty,Hull Office,Corporate Travel Management (North of England) Ltd,SME,1222845, 577.55 ,Travel & Subsistence,Administration
HM Land Registry,HM Land Registry,07/08/2018,Travel & Subsistence General Duty,Local Land Charges,Corporate Travel Management (North of England) Ltd,SME,1222845," 3,335.92 ",Travel & Subsistence,Administration
HM Land Registry,HM Land Registry,07/08/2018,Travel & Subsistence Dual Workplace,Local Land Charges,Corporate Travel Management (North of England) Ltd,SME,1222845, 119.90 ,Travel & Subsistence,Administration
HM Land Registry,HM Land Registry,07/08/2018,Travel & Subsistence General Duty,Local Lawyer Group,Corporate Travel Management (North of England) Ltd,SME,1222845, 896.75 ,Travel & Subsistence,Administration
HM Land Registry,HM Land Registry,07/08/2018,Travel & Subsistence Dual Workplace,Local Lawyer Group,Corporate Travel Management (North of England) Ltd,SME,1222845, 153.80 ,Travel & Subsistence,Administration
HM Land Registry,HM Land Registry,07/08/2018,Travel & Subsistence General Duty,Plymouth Office,Corporate Travel Management (North of England) Ltd,SME,1222845, 46.00 ,Travel & Subsistence,Administration
HM Land Registry,HM Land Registry,07/08/2018,Travel & Subsistence General Duty,Product Development & Management,Corporate Travel Management (North of England) Ltd,SME,1222845, 998.15 ,Travel & Subsistence,Administration
HM Land Registry,HM Land Registry,07/08/2018,Travel & Subsistence General Duty,Program: Local Land Charges,Corporate Travel Management (North of England) Ltd,SME,1222845," 3,999.30 ",Travel & Subsistence,Administration
HM Land Registry,HM Land Registry,07/08/2018,Travel & Subsistence General Duty,Projects and Programme Centre,Corporate Travel Management (North of England) Ltd,SME,1222845, 201.90 ,Travel & Subsistence,Administration
HM Land Registry,HM Land Registry,07/08/2018,Travel & Subsistence General Duty,Property Asset Management Group,Corporate Travel Management (North of England) Ltd,SME,1222845, 478.30 ,Travel & Subsistence,Administration
HM Land Registry,HM Land Registry,07/08/2018,Travel & Subsistence General Duty,Research & Data Mining,Corporate Travel Management (North of England) Ltd,SME,1222845,-32.90 ,Travel & Subsistence,Administration
HM Land Registry,HM Land Registry,07/08/2018,Travel & Subsistence General Duty,Strategy Team,Corporate Travel Management (North of England) Ltd,SME,1222845, 263.40 ,Travel & Subsistence,Administration
HM Land Registry,HM Land Registry,07/08/2018,Travel & Subsistence General Duty,Wales Office,Corporate Travel Management (North of England) Ltd,SME,1222845, 489.21 ,Travel & Subsistence,Administration
HM Land Registry,HM Land Registry,07/08/2018,Travel & Subsistence General Duty,Weymouth Office,Corporate Travel Management (North of England) Ltd,SME,1222845, 131.25 ,Travel & Subsistence,Administration
HM Land Registry,HM Land Registry,07/08/2018,Travel & Subsistence General Duty,Dir: Finance,Corporate Travel Management (North of England) Ltd,SME,1222845," 2,522.68 ",Travel & Subsistence,Administration
HM Land Registry,HM Land Registry,07/08/2018,Travel & Subsistence General Duty,Internal Audit,Corporate Travel Management (North of England) Ltd,SME,1222845,-81.00 ,Travel & Subsistence,Administration
HM Land Registry,HM Land Registry,07/08/2018,Travel & Subsistence General Duty,International Business Development,Corporate Travel Management (North of England) Ltd,SME,1222845, 358.15 ,Travel & Subsistence,Administration
HM Land Registry,HM Land Registry,07/08/2018,Travel & Subsistence General Duty,Communications Team,Corporate Travel Management (North of England) Ltd,SME,1222845, 131.95 ,Travel & Subsistence,Administration
HM Land Registry,HM Land Registry,07/08/2018,Travel & Subsistence General Duty,Operations Assurance and Risk,Corporate Travel Management (North of England) Ltd,SME,1222845,-44.00 ,Travel & Subsistence,Administration
HM Land Registry,HM Land Registry,07/08/2018,Travel & Subsistence General Duty,Operation Focus,Corporate Travel Management (North of England) Ltd,SME,1222845, 473.30 ,Travel & Subsistence,Administration
HM Land Registry,HM Land Registry,07/08/2018,Travel & Subsistence General Duty,Customer Services,Corporate Travel Management (North of England) Ltd,SME,1222845, 599.96 ,Travel & Subsistence,Administration
HM Land Registry,HM Land Registry,07/08/2018,Travel & Subsistence General Duty,Service Management - Application Processing,Corporate Travel Management (North of England) Ltd,SME,1222845," 2,001.06 ",Travel & Subsistence,Administration
HM Land Registry,HM Land Registry,07/08/2018,Travel & Subsistence General Duty,Register Development,Corporate Travel Management (North of England) Ltd,SME,1222845, 210.60 ,Travel & Subsistence,Administration
HM Land Registry,HM Land Registry,07/08/2018,Travel & Subsistence General Duty,Local Lawyer Support Group,Corporate Travel Management (North of England) Ltd,SME,1222845, 157.86 ,Travel & Subsistence,Administration
HM Land Registry,HM Land Registry,07/08/2018,Travel & Subsistence General Duty,Head of Commercial Services,Corporate Travel Management (North of England) Ltd,SME,1222845, 799.70 ,Travel & Subsistence,Administration
HM Land Registry,HM Land Registry,07/08/2018,Travel & Subsistence General Duty,LR Sports Council,Corporate Travel Management (North of England) Ltd,SME,1222845, 166.60 ,Travel & Subsistence,Administration
HM Land Registry,HM Land Registry,07/08/2018,Travel & Subsistence General Duty,LR Board & Board Chair,Corporate Travel Management (North of England) Ltd,SME,1222845, 25.40 ,Travel & Subsistence,Administration
HM Land Registry,HM Land Registry,07/08/2018,Travel & Subsistence General Duty,Guarantee & Litigation,Corporate Travel Management (North of England) Ltd,SME,1222845, 73.00 ,Travel & Subsistence,Administration
HM Land Registry,HM Land Registry,07/08/2018,Travel & Subsistence General Duty,Dir: HR,Corporate Travel Management (North of England) Ltd,SME,1222845, 123.50 ,Travel & Subsistence,Administration
HM Land Registry,HM Land Registry,07/08/2018,Travel & Subsistence General Duty,Independent Complaints Reviewer,Corporate Travel Management (North of England) Ltd,SME,1222845, 59.70 ,Travel & Subsistence,Administration
HM Land Registry,HM Land Registry,14/08/2018,Assets in the Course of Construction,Balance Sheet,Corporate Travel Management (North of England) Ltd,SME,1223574, 25.80 ,Assets in the Course of Construction,Administration
HM Land Registry,HM Land Registry,14/08/2018,Travel & Subsistence General Duty,Birkenhead Office,Corporate Travel Management (North of England) Ltd,SME,1223574, 86.60 ,Travel & Subsistence,Administration
HM Land Registry,HM Land Registry,14/08/2018,Travel & Subsistence General Duty,Business Development,Corporate Travel Management (North of England) Ltd,SME,1223574, 908.40 ,Travel & Subsistence,Administration
HM Land Registry,HM Land Registry,14/08/2018,Travel & Subsistence General Duty,Central Facilities Management Team,Corporate Travel Management (North of England) Ltd,SME,1223574," 1,611.40 ",Travel & Subsistence,Administration
HM Land Registry,HM Land Registry,14/08/2018,Travel & Subsistence General Duty,Central Operations Group,Corporate Travel Management (North of England) Ltd,SME,1223574, 439.70 ,Travel & Subsistence,Administration
HM Land Registry,HM Land Registry,14/08/2018,Travel & Subsistence General Duty,Chief Executives Office,Corporate Travel Management (North of England) Ltd,SME,1223574, 445.20 ,Travel & Subsistence,Administration
HM Land Registry,HM Land Registry,14/08/2018,Travel & Subsistence General Duty,Commercial & Customer Strategy & Performance,Corporate Travel Management (North of England) Ltd,SME,1223574, 0.50 ,Travel & Subsistence,Administration
HM Land Registry,HM Land Registry,14/08/2018,Travel & Subsistence General Duty,Commercial Director,Corporate Travel Management (North of England) Ltd,SME,1223574, 258.90 ,Travel & Subsistence,Administration
HM Land Registry,HM Land Registry,14/08/2018,Travel & Subsistence General Duty,Corp Procurement,Corporate Travel Management (North of England) Ltd,SME,1223574, 111.80 ,Travel & Subsistence,Administration
HM Land Registry,HM Land Registry,14/08/2018,Travel & Subsistence General Duty,Corporate Legal Services,Corporate Travel Management (North of England) Ltd,SME,1223574, 830.90 ,Travel & Subsistence,Administration
HM Land Registry,HM Land Registry,14/08/2018,Travel & Subsistence Dual Workplace,Corporate Legal Services,Corporate Travel Management (North of England) Ltd,SME,1223574, 105.55 ,Travel & Subsistence,Administration
HM Land Registry,HM Land Registry,14/08/2018,Travel & Subsistence General Duty,Coventry Office,Corporate Travel Management (North of England) Ltd,SME,1223574, 89.60 ,Travel & Subsistence,Administration
HM Land Registry,HM Land Registry,14/08/2018,Travel & Subsistence General Duty,Croydon Office,Corporate Travel Management (North of England) Ltd,SME,1223574, 245.10 ,Travel & Subsistence,Administration
HM Land Registry,HM Land Registry,14/08/2018,Travel & Subsistence General Duty,Data Group,Corporate Travel Management (North of England) Ltd,SME,1223574, 423.11 ,Travel & Subsistence,Administration
HM Land Registry,HM Land Registry,14/08/2018,Travel & Subsistence General Duty,Dir: (Statutory) Digital Services,Corporate Travel Management (North of England) Ltd,SME,1223574," 2,150.71 ",Travel & Subsistence,Administration
HM Land Registry,HM Land Registry,14/08/2018,Travel & Subsistence General Duty,Dir: Operations,Corporate Travel Management (North of England) Ltd,SME,1223574," 2,125.00 ",Travel & Subsistence,Administration
HM Land Registry,HM Land Registry,14/08/2018,Travel & Subsistence General Duty,Director of Information Systems,Corporate Travel Management (North of England) Ltd,SME,1223574," 1,579.21 ",Travel & Subsistence,Administration
HM Land Registry,HM Land Registry,14/08/2018,Travel & Subsistence General Duty,Director of Operations,Corporate Travel Management (North of England) Ltd,SME,1223574, 147.40 ,Travel & Subsistence,Administration
HM Land Registry,HM Land Registry,14/08/2018,Travel & Subsistence General Duty,Durham Office,Corporate Travel Management (North of England) Ltd,SME,1223574, 412.49 ,Travel & Subsistence,Administration
HM Land Registry,HM Land Registry,14/08/2018,Travel & Subsistence Dual Workplace,Durham Office,Corporate Travel Management (North of England) Ltd,SME,1223574, 336.70 ,Travel & Subsistence,Administration
HM Land Registry,HM Land Registry,14/08/2018,Travel & Subsistence General Duty,Finance Group,Corporate Travel Management (North of England) Ltd,SME,1223574, 12.70 ,Travel & Subsistence,Administration
HM Land Registry,HM Land Registry,14/08/2018,Travel & Subsistence General Duty,Forward Scanning,Corporate Travel Management (North of England) Ltd,SME,1223574, 145.70 ,Travel & Subsistence,Administration
HM Land Registry,HM Land Registry,14/08/2018,Travel & Subsistence General Duty,Fylde Office,Corporate Travel Management (North of England) Ltd,SME,1223574, 89.60 ,Travel & Subsistence,Administration
HM Land Registry,HM Land Registry,14/08/2018,Travel & Subsistence General Duty,HR Group,Corporate Travel Management (North of England) Ltd,SME,1223574," 1,954.20 ",Travel & Subsistence,Administration
HM Land Registry,HM Land Registry,14/08/2018,Travel & Subsistence General Duty,Hull Office,Corporate Travel Management (North of England) Ltd,SME,1223574, 467.00 ,Travel & Subsistence,Administration
HM Land Registry,HM Land Registry,14/08/2018,Travel & Subsistence General Duty,Leicester Office,Corporate Travel Management (North of England) Ltd,SME,1223574, 41.50 ,Travel & Subsistence,Administration
HM Land Registry,HM Land Registry,14/08/2018,Travel & Subsistence General Duty,Local Land Charges,Corporate Travel Management (North of England) Ltd,SME,1223574," 1,648.15 ",Travel & Subsistence,Administration
HM Land Registry,HM Land Registry,14/08/2018,Travel & Subsistence Dual Workplace,Local Land Charges,Corporate Travel Management (North of England) Ltd,SME,1223574, 281.30 ,Travel & Subsistence,Administration
HM Land Registry,HM Land Registry,14/08/2018,Travel & Subsistence General Duty,Local Lawyer Group,Corporate Travel Management (North of England) Ltd,SME,1223574, 364.00 ,Travel & Subsistence,Administration
HM Land Registry,HM Land Registry,14/08/2018,Travel & Subsistence Dual Workplace,Local Lawyer Group,Corporate Travel Management (North of England) Ltd,SME,1223574, 171.20 ,Travel & Subsistence,Administration
HM Land Registry,HM Land Registry,14/08/2018,Travel & Subsistence General Duty,Peterborough Office,Corporate Travel Management (North of England) Ltd,SME,1223574, 83.60 ,Travel & Subsistence,Administration
HM Land Registry,HM Land Registry,14/08/2018,Travel & Subsistence General Duty,Plymouth Office,Corporate Travel Management (North of England) Ltd,SME,1223574, 95.50 ,Travel & Subsistence,Administration
HM Land Registry,HM Land Registry,14/08/2018,Travel & Subsistence General Duty,Product Development & Management,Corporate Travel Management (North of England) Ltd,SME,1223574," 1,883.90 ",Travel & Subsistence,Administration
HM Land Registry,HM Land Registry,14/08/2018,Travel & Subsistence General Duty,Program: Local Land Charges,Corporate Travel Management (North of England) Ltd,SME,1223574, 728.64 ,Travel & Subsistence,Administration
HM Land Registry,HM Land Registry,14/08/2018,Travel & Subsistence General Duty,Projects and Programme Centre,Corporate Travel Management (North of England) Ltd,SME,1223574, 543.15 ,Travel & Subsistence,Administration
HM Land Registry,HM Land Registry,14/08/2018,Travel & Subsistence General Duty,Property Asset Management Group,Corporate Travel Management (North of England) Ltd,SME,1223574, 136.20 ,Travel & Subsistence,Administration
HM Land Registry,HM Land Registry,14/08/2018,Travel & Subsistence General Duty,Research & Data Mining,Corporate Travel Management (North of England) Ltd,SME,1223574, 0.60 ,Travel & Subsistence,Administration
HM Land Registry,HM Land Registry,14/08/2018,Travel & Subsistence General Duty,Telford Office,Corporate Travel Management (North of England) Ltd,SME,1223574, 89.60 ,Travel & Subsistence,Administration
HM Land Registry,HM Land Registry,14/08/2018,Travel & Subsistence General Duty,Wales Office,Corporate Travel Management (North of England) Ltd,SME,1223574, 565.30 ,Travel & Subsistence,Administration
HM Land Registry,HM Land Registry,14/08/2018,Travel & Subsistence General Duty,Weymouth Office,Corporate Travel Management (North of England) Ltd,SME,1223574, 89.60 ,Travel & Subsistence,Administration
HM Land Registry,HM Land Registry,14/08/2018,Travel & Subsistence General Duty,Dir: Finance,Corporate Travel Management (North of England) Ltd,SME,1223574," 2,147.30 ",Travel & Subsistence,Administration
HM Land Registry,HM Land Registry,14/08/2018,Travel & Subsistence General Duty,Internal Audit,Corporate Travel Management (North of England) Ltd,SME,1223574, 238.00 ,Travel & Subsistence,Administration
HM Land Registry,HM Land Registry,14/08/2018,Travel & Subsistence General Duty,International Business Development,Corporate Travel Management (North of England) Ltd,SME,1223574, 170.72 ,Travel & Subsistence,Administration
HM Land Registry,HM Land Registry,14/08/2018,Travel & Subsistence General Duty,Communications Team,Corporate Travel Management (North of England) Ltd,SME,1223574, 289.80 ,Travel & Subsistence,Administration
HM Land Registry,HM Land Registry,14/08/2018,Travel & Subsistence General Duty,Diversity,Corporate Travel Management (North of England) Ltd,SME,1223574, 135.00 ,Travel & Subsistence,Administration
HM Land Registry,HM Land Registry,14/08/2018,Travel & Subsistence General Duty,Operations Assurance and Risk,Corporate Travel Management (North of England) Ltd,SME,1223574,-272.70 ,Travel & Subsistence,Administration
HM Land Registry,HM Land Registry,14/08/2018,Travel & Subsistence General Duty,Operation Focus,Corporate Travel Management (North of England) Ltd,SME,1223574, 67.30 ,Travel & Subsistence,Administration
HM Land Registry,HM Land Registry,14/08/2018,Travel & Subsistence General Duty,Customer Services,Corporate Travel Management (North of England) Ltd,SME,1223574, 820.50 ,Travel & Subsistence,Administration
HM Land Registry,HM Land Registry,14/08/2018,Travel & Subsistence General Duty,Service Management - Application Processing,Corporate Travel Management (North of England) Ltd,SME,1223574, 226.57 ,Travel & Subsistence,Administration
HM Land Registry,HM Land Registry,14/08/2018,Travel & Subsistence General Duty,Register Development,Corporate Travel Management (North of England) Ltd,SME,1223574, 0.60 ,Travel & Subsistence,Administration
HM Land Registry,HM Land Registry,14/08/2018,Travel & Subsistence General Duty,Local Lawyer Support Group,Corporate Travel Management (North of England) Ltd,SME,1223574, 295.00 ,Travel & Subsistence,Administration
HM Land Registry,HM Land Registry,14/08/2018,Travel & Subsistence General Duty,Head of Commercial Services,Corporate Travel Management (North of England) Ltd,SME,1223574, 659.50 ,Travel & Subsistence,Administration
HM Land Registry,HM Land Registry,14/08/2018,Travel & Subsistence General Duty,LR Sports Council,Corporate Travel Management (North of England) Ltd,SME,1223574,-153.20 ,Travel & Subsistence,Administration
HM Land Registry,HM Land Registry,14/08/2018,Travel & Subsistence General Duty,IT Solutions,Corporate Travel Management (North of England) Ltd,SME,1223574, 122.00 ,Travel & Subsistence,Administration
HM Land Registry,HM Land Registry,14/08/2018,Travel & Subsistence General Duty,Service & Supplier Performance,Corporate Travel Management (North of England) Ltd,SME,1223574, 269.40 ,Travel & Subsistence,Administration
HM Land Registry,HM Land Registry,28/08/2018,Travel & Subsistence General Duty,Birkenhead Office,Corporate Travel Management (North of England) Ltd,SME,1224550, 982.90 ,Travel & Subsistence,Administration
HM Land Registry,HM Land Registry,28/08/2018,Travel & Subsistence General Duty,Business Development,Corporate Travel Management (North of England) Ltd,SME,1224550, 830.24 ,Travel & Subsistence,Administration
HM Land Registry,HM Land Registry,28/08/2018,Travel & Subsistence General Duty,Central Facilities Management Team,Corporate Travel Management (North of England) Ltd,SME,1224550, 273.13 ,Travel & Subsistence,Administration
HM Land Registry,HM Land Registry,28/08/2018,Travel & Subsistence General Duty,Central Operations Group,Corporate Travel Management (North of England) Ltd,SME,1224550, 435.20 ,Travel & Subsistence,Administration
HM Land Registry,HM Land Registry,28/08/2018,Travel & Subsistence General Duty,Chief Executives Office,Corporate Travel Management (North of England) Ltd,SME,1224550, 472.20 ,Travel & Subsistence,Administration
HM Land Registry,HM Land Registry,28/08/2018,Travel & Subsistence General Duty,Commercial & Customer Strategy & Performance,Corporate Travel Management (North of England) Ltd,SME,1224550, 167.45 ,Travel & Subsistence,Administration
HM Land Registry,HM Land Registry,28/08/2018,Travel & Subsistence General Duty,Commercial Director,Corporate Travel Management (North of England) Ltd,SME,1224550, 213.80 ,Travel & Subsistence,Administration
HM Land Registry,HM Land Registry,28/08/2018,Travel & Subsistence General Duty,Corp Procurement,Corporate Travel Management (North of England) Ltd,SME,1224550," 1,565.90 ",Travel & Subsistence,Administration
HM Land Registry,HM Land Registry,28/08/2018,Travel & Subsistence General Duty,Corporate Legal Services,Corporate Travel Management (North of England) Ltd,SME,1224550, 144.30 ,Travel & Subsistence,Administration
HM Land Registry,HM Land Registry,28/08/2018,Travel & Subsistence Dual Workplace,Corporate Legal Services,Corporate Travel Management (North of England) Ltd,SME,1224550, 46.50 ,Travel & Subsistence,Administration
HM Land Registry,HM Land Registry,28/08/2018,Travel & Subsistence General Duty,Croydon Office,Corporate Travel Management (North of England) Ltd,SME,1224550," 1,084.40 ",Travel & Subsistence,Administration
HM Land Registry,HM Land Registry,28/08/2018,Travel & Subsistence General Duty,Data Group,Corporate Travel Management (North of England) Ltd,SME,1224550," 1,503.62 ",Travel & Subsistence,Administration
HM Land Registry,HM Land Registry,28/08/2018,Travel & Subsistence General Duty,Dir: (Statutory) Digital Services,Corporate Travel Management (North of England) Ltd,SME,1224550," 2,666.76 ",Travel & Subsistence,Administration
HM Land Registry,HM Land Registry,28/08/2018,Travel & Subsistence General Duty,Dir: Operations,Corporate Travel Management (North of England) Ltd,SME,1224550," 1,117.57 ",Travel & Subsistence,Administration
HM Land Registry,HM Land Registry,28/08/2018,Travel & Subsistence General Duty,Director of Information Systems,Corporate Travel Management (North of England) Ltd,SME,1224550,"-1,172.60 ",Travel & Subsistence,Administration
HM Land Registry,HM Land Registry,28/08/2018,Travel & Subsistence General Duty,Director of Legal Services,Corporate Travel Management (North of England) Ltd,SME,1224550, 68.60 ,Travel & Subsistence,Administration
HM Land Registry,HM Land Registry,28/08/2018,Travel & Subsistence General Duty,Director of Operations,Corporate Travel Management (North of England) Ltd,SME,1224550, 79.60 ,Travel & Subsistence,Administration
HM Land Registry,HM Land Registry,28/08/2018,Travel & Subsistence General Duty,Durham Office,Corporate Travel Management (North of England) Ltd,SME,1224550," 1,044.60 ",Travel & Subsistence,Administration
HM Land Registry,HM Land Registry,28/08/2018,Travel & Subsistence General Duty,Finance Group,Corporate Travel Management (North of England) Ltd,SME,1224550, 38.70 ,Travel & Subsistence,Administration
HM Land Registry,HM Land Registry,28/08/2018,Travel & Subsistence General Duty,Fylde Office,Corporate Travel Management (North of England) Ltd,SME,1224550, 281.12 ,Travel & Subsistence,Administration
HM Land Registry,HM Land Registry,28/08/2018,Travel & Subsistence General Duty,Gloucester Office,Corporate Travel Management (North of England) Ltd,SME,1224550, 162.93 ,Travel & Subsistence,Administration
HM Land Registry,HM Land Registry,28/08/2018,Travel & Subsistence General Duty,HR Group,Corporate Travel Management (North of England) Ltd,SME,1224550," 2,981.15 ",Travel & Subsistence,Administration
HM Land Registry,HM Land Registry,28/08/2018,Travel & Subsistence General Duty,Hull Office,Corporate Travel Management (North of England) Ltd,SME,1224550, 265.08 ,Travel & Subsistence,Administration
HM Land Registry,HM Land Registry,28/08/2018,Travel & Subsistence General Duty,Local Land Charges,Corporate Travel Management (North of England) Ltd,SME,1224550," 1,722.11 ",Travel & Subsistence,Administration
HM Land Registry,HM Land Registry,28/08/2018,Travel & Subsistence Dual Workplace,Local Land Charges,Corporate Travel Management (North of England) Ltd,SME,1224550, 174.90 ,Travel & Subsistence,Administration
HM Land Registry,HM Land Registry,28/08/2018,Travel & Subsistence General Duty,Local Lawyer Group,Corporate Travel Management (North of England) Ltd,SME,1224550, 959.30 ,Travel & Subsistence,Administration
HM Land Registry,HM Land Registry,28/08/2018,Travel & Subsistence Dual Workplace,Local Lawyer Group,Corporate Travel Management (North of England) Ltd,SME,1224550, 68.10 ,Travel & Subsistence,Administration
HM Land Registry,HM Land Registry,28/08/2018,Travel & Subsistence General Duty,Peterborough Office,Corporate Travel Management (North of England) Ltd,SME,1224550, 37.60 ,Travel & Subsistence,Administration
HM Land Registry,HM Land Registry,28/08/2018,Travel & Subsistence General Duty,Product Development & Management,Corporate Travel Management (North of England) Ltd,SME,1224550," 1,098.99 ",Travel & Subsistence,Administration
HM Land Registry,HM Land Registry,28/08/2018,Travel & Subsistence General Duty,Program: Local Land Charges,Corporate Travel Management (North of England) Ltd,SME,1224550," 3,120.77 ",Travel & Subsistence,Administration
HM Land Registry,HM Land Registry,28/08/2018,Travel & Subsistence General Duty,Projects and Programme Centre,Corporate Travel Management (North of England) Ltd,SME,1224550, 763.33 ,Travel & Subsistence,Administration
HM Land Registry,HM Land Registry,28/08/2018,Travel & Subsistence General Duty,Property Asset Management Group,Corporate Travel Management (North of England) Ltd,SME,1224550, 272.70 ,Travel & Subsistence,Administration
HM Land Registry,HM Land Registry,28/08/2018,Travel & Subsistence General Duty,Research & Data Mining,Corporate Travel Management (North of England) Ltd,SME,1224550, 476.40 ,Travel & Subsistence,Administration
HM Land Registry,HM Land Registry,28/08/2018,Travel & Subsistence General Duty,Strategy Team,Corporate Travel Management (North of England) Ltd,SME,1224550, 77.90 ,Travel & Subsistence,Administration
HM Land Registry,HM Land Registry,28/08/2018,Travel & Subsistence General Duty,Telford Office,Corporate Travel Management (North of England) Ltd,SME,1224550, 286.50 ,Travel & Subsistence,Administration
HM Land Registry,HM Land Registry,28/08/2018,Travel & Subsistence General Duty,Wales Office,Corporate Travel Management (North of England) Ltd,SME,1224550, 266.01 ,Travel & Subsistence,Administration
HM Land Registry,HM Land Registry,28/08/2018,Travel & Subsistence General Duty,Dir: Finance,Corporate Travel Management (North of England) Ltd,SME,1224550," 1,506.98 ",Travel & Subsistence,Administration
HM Land Registry,HM Land Registry,28/08/2018,Travel & Subsistence General Duty,Internal Audit,Corporate Travel Management (North of England) Ltd,SME,1224550, 74.60 ,Travel & Subsistence,Administration
HM Land Registry,HM Land Registry,28/08/2018,Travel & Subsistence General Duty,Communications Team,Corporate Travel Management (North of England) Ltd,SME,1224550, 453.90 ,Travel & Subsistence,Administration
HM Land Registry,HM Land Registry,28/08/2018,Travel & Subsistence General Duty,Diversity,Corporate Travel Management (North of England) Ltd,SME,1224550, 87.00 ,Travel & Subsistence,Administration
HM Land Registry,HM Land Registry,28/08/2018,Travel & Subsistence General Duty,Operations Assurance and Risk,Corporate Travel Management (North of England) Ltd,SME,1224550, 286.00 ,Travel & Subsistence,Administration
HM Land Registry,HM Land Registry,28/08/2018,Travel & Subsistence General Duty,Operation Focus,Corporate Travel Management (North of England) Ltd,SME,1224550, 673.50 ,Travel & Subsistence,Administration
HM Land Registry,HM Land Registry,28/08/2018,Travel & Subsistence General Duty,Customer Services,Corporate Travel Management (North of England) Ltd,SME,1224550, 838.75 ,Travel & Subsistence,Administration
HM Land Registry,HM Land Registry,28/08/2018,Travel & Subsistence General Duty,Service Management - Application Processing,Corporate Travel Management (North of England) Ltd,SME,1224550, 936.76 ,Travel & Subsistence,Administration
HM Land Registry,HM Land Registry,28/08/2018,Travel & Subsistence General Duty,Register Development,Corporate Travel Management (North of England) Ltd,SME,1224550, 529.50 ,Travel & Subsistence,Administration
HM Land Registry,HM Land Registry,28/08/2018,Travel & Subsistence General Duty,Local Lawyer Support Group,Corporate Travel Management (North of England) Ltd,SME,1224550, 75.13 ,Travel & Subsistence,Administration
HM Land Registry,HM Land Registry,28/08/2018,Travel & Subsistence General Duty,Head of Commercial Services,Corporate Travel Management (North of England) Ltd,SME,1224550, 920.10 ,Travel & Subsistence,Administration
HM Land Registry,HM Land Registry,28/08/2018,Travel & Subsistence General Duty,IT Solutions,Corporate Travel Management (North of England) Ltd,SME,1224550," 2,035.60 ",Travel & Subsistence,Administration
HM Land Registry,HM Land Registry,28/08/2018,Travel & Subsistence General Duty,Service & Supplier Performance,Corporate Travel Management (North of England) Ltd,SME,1224550," 1,007.11 ",Travel & Subsistence,Administration
HM Land Registry,HM Land Registry,28/08/2018,Travel & Subsistence General Duty,Learning and Development,Corporate Travel Management (North of England) Ltd,SME,1224550, 326.83 ,Travel & Subsistence,Administration
HM Land Registry,HM Land Registry,28/08/2018,Travel & Subsistence General Duty,Office of DDaT,Corporate Travel Management (North of England) Ltd,SME,1224550, 864.15 ,Travel & Subsistence,Administration
HM Land Registry,HM Land Registry,29/08/2018,Travel & Subsistence General Duty,Business Development,Corporate Travel Management (North of England) Ltd,SME,1224683, 936.33 ,Travel & Subsistence,Administration
HM Land Registry,HM Land Registry,29/08/2018,Travel & Subsistence General Duty,Central Facilities Management Team,Corporate Travel Management (North of England) Ltd,SME,1224683, 529.85 ,Travel & Subsistence,Administration
HM Land Registry,HM Land Registry,29/08/2018,Travel & Subsistence General Duty,Central Operations Group,Corporate Travel Management (North of England) Ltd,SME,1224683, 574.90 ,Travel & Subsistence,Administration
HM Land Registry,HM Land Registry,29/08/2018,Travel & Subsistence General Duty,Chief Executives Office,Corporate Travel Management (North of England) Ltd,SME,1224683, 273.10 ,Travel & Subsistence,Administration
HM Land Registry,HM Land Registry,29/08/2018,Travel & Subsistence General Duty,Commercial & Customer Strategy & Performance,Corporate Travel Management (North of England) Ltd,SME,1224683, 105.10 ,Travel & Subsistence,Administration
HM Land Registry,HM Land Registry,29/08/2018,Travel & Subsistence General Duty,Commercial Director,Corporate Travel Management (North of England) Ltd,SME,1224683, 411.20 ,Travel & Subsistence,Administration
HM Land Registry,HM Land Registry,29/08/2018,Travel & Subsistence General Duty,Corp Procurement,Corporate Travel Management (North of England) Ltd,SME,1224683, 249.82 ,Travel & Subsistence,Administration
HM Land Registry,HM Land Registry,29/08/2018,Travel & Subsistence General Duty,Corporate Legal Services,Corporate Travel Management (North of England) Ltd,SME,1224683, 288.50 ,Travel & Subsistence,Administration
HM Land Registry,HM Land Registry,29/08/2018,Travel & Subsistence General Duty,Croydon Office,Corporate Travel Management (North of England) Ltd,SME,1224683, 375.80 ,Travel & Subsistence,Administration
HM Land Registry,HM Land Registry,29/08/2018,Travel & Subsistence General Duty,Data Group,Corporate Travel Management (North of England) Ltd,SME,1224683," 1,452.83 ",Travel & Subsistence,Administration
HM Land Registry,HM Land Registry,29/08/2018,Travel & Subsistence General Duty,Dir: (Statutory) Digital Services,Corporate Travel Management (North of England) Ltd,SME,1224683," 3,981.90 ",Travel & Subsistence,Administration
HM Land Registry,HM Land Registry,29/08/2018,Travel & Subsistence General Duty,Dir: Operations,Corporate Travel Management (North of England) Ltd,SME,1224683, 452.56 ,Travel & Subsistence,Administration
HM Land Registry,HM Land Registry,29/08/2018,Travel & Subsistence General Duty,Director of Information Systems,Corporate Travel Management (North of England) Ltd,SME,1224683,-141.10 ,Travel & Subsistence,Administration
HM Land Registry,HM Land Registry,29/08/2018,Travel & Subsistence General Duty,Director of Operations,Corporate Travel Management (North of England) Ltd,SME,1224683, 148.60 ,Travel & Subsistence,Administration
HM Land Registry,HM Land Registry,29/08/2018,Travel & Subsistence General Duty,Durham Office,Corporate Travel Management (North of England) Ltd,SME,1224683," 1,477.78 ",Travel & Subsistence,Administration
HM Land Registry,HM Land Registry,29/08/2018,Travel & Subsistence Overseas Travel,Finance Group,Corporate Travel Management (North of England) Ltd,SME,1224683, 118.50 ,Travel & Subsistence,Administration
HM Land Registry,HM Land Registry,29/08/2018,Travel & Subsistence General Duty,Fylde Office,Corporate Travel Management (North of England) Ltd,SME,1224683, 113.30 ,Travel & Subsistence,Administration
HM Land Registry,HM Land Registry,29/08/2018,Travel & Subsistence General Duty,Gloucester Office,Corporate Travel Management (North of England) Ltd,SME,1224683, 77.39 ,Travel & Subsistence,Administration
HM Land Registry,HM Land Registry,29/08/2018,Travel & Subsistence General Duty,HR Group,Corporate Travel Management (North of England) Ltd,SME,1224683," 1,703.52 ",Travel & Subsistence,Administration
HM Land Registry,HM Land Registry,29/08/2018,Travel & Subsistence General Duty,Hull Office,Corporate Travel Management (North of England) Ltd,SME,1224683, 119.80 ,Travel & Subsistence,Administration
HM Land Registry,HM Land Registry,29/08/2018,Travel & Subsistence General Duty,IS Service Delivery,Corporate Travel Management (North of England) Ltd,SME,1224683, 317.80 ,Travel & Subsistence,Administration
HM Land Registry,HM Land Registry,29/08/2018,Travel & Subsistence General Duty,Local Land Charges,Corporate Travel Management (North of England) Ltd,SME,1224683," 2,198.65 ",Travel & Subsistence,Administration
HM Land Registry,HM Land Registry,29/08/2018,Travel & Subsistence Dual Workplace,Local Land Charges,Corporate Travel Management (North of England) Ltd,SME,1224683, 236.33 ,Travel & Subsistence,Administration
HM Land Registry,HM Land Registry,29/08/2018,Travel & Subsistence General Duty,Local Lawyer Group,Corporate Travel Management (North of England) Ltd,SME,1224683, 253.10 ,Travel & Subsistence,Administration
HM Land Registry,HM Land Registry,29/08/2018,Travel & Subsistence Dual Workplace,Local Lawyer Group,Corporate Travel Management (North of England) Ltd,SME,1224683, 217.20 ,Travel & Subsistence,Administration
HM Land Registry,HM Land Registry,29/08/2018,Travel & Subsistence General Duty,Nottingham Office,Corporate Travel Management (North of England) Ltd,SME,1224683, 82.60 ,Travel & Subsistence,Administration
HM Land Registry,HM Land Registry,29/08/2018,Travel & Subsistence General Duty,Peterborough Office,Corporate Travel Management (North of England) Ltd,SME,1224683, 68.60 ,Travel & Subsistence,Administration
HM Land Registry,HM Land Registry,29/08/2018,Travel & Subsistence General Duty,Product Development & Management,Corporate Travel Management (North of England) Ltd,SME,1224683, 319.30 ,Travel & Subsistence,Administration
HM Land Registry,HM Land Registry,29/08/2018,Travel & Subsistence General Duty,Program: Local Land Charges,Corporate Travel Management (North of England) Ltd,SME,1224683," 2,038.01 ",Travel & Subsistence,Administration
HM Land Registry,HM Land Registry,29/08/2018,Travel & Subsistence General Duty,Projects and Programme Centre,Corporate Travel Management (North of England) Ltd,SME,1224683, 441.67 ,Travel & Subsistence,Administration
HM Land Registry,HM Land Registry,29/08/2018,Travel & Subsistence General Duty,Property Asset Management Group,Corporate Travel Management (North of England) Ltd,SME,1224683, 538.16 ,Travel & Subsistence,Administration
HM Land Registry,HM Land Registry,29/08/2018,Travel & Subsistence General Duty,Research & Data Mining,Corporate Travel Management (North of England) Ltd,SME,1224683, 621.44 ,Travel & Subsistence,Administration
HM Land Registry,HM Land Registry,29/08/2018,Travel & Subsistence General Duty,Strategy Team,Corporate Travel Management (North of England) Ltd,SME,1224683, 125.30 ,Travel & Subsistence,Administration
HM Land Registry,HM Land Registry,29/08/2018,Travel & Subsistence General Duty,Telford Office,Corporate Travel Management (North of England) Ltd,SME,1224683, 148.60 ,Travel & Subsistence,Administration
HM Land Registry,HM Land Registry,29/08/2018,Travel & Subsistence General Duty,Dir: Finance,Corporate Travel Management (North of England) Ltd,SME,1224683," 1,889.25 ",Travel & Subsistence,Administration
HM Land Registry,HM Land Registry,29/08/2018,Travel & Subsistence General Duty,International Business Development,Corporate Travel Management (North of England) Ltd,SME,1224683, 363.60 ,Travel & Subsistence,Administration
HM Land Registry,HM Land Registry,29/08/2018,Travel & Subsistence General Duty,Communications Team,Corporate Travel Management (North of England) Ltd,SME,1224683, 301.60 ,Travel & Subsistence,Administration
HM Land Registry,HM Land Registry,29/08/2018,Travel & Subsistence General Duty,Diversity,Corporate Travel Management (North of England) Ltd,SME,1224683, 143.10 ,Travel & Subsistence,Administration
HM Land Registry,HM Land Registry,29/08/2018,Travel & Subsistence General Duty,Operations Assurance and Risk,Corporate Travel Management (North of England) Ltd,SME,1224683, 88.60 ,Travel & Subsistence,Administration
HM Land Registry,HM Land Registry,29/08/2018,Travel & Subsistence General Duty,Operation Focus,Corporate Travel Management (North of England) Ltd,SME,1224683, 0.60 ,Travel & Subsistence,Administration
HM Land Registry,HM Land Registry,29/08/2018,Travel & Subsistence General Duty,Customer Services,Corporate Travel Management (North of England) Ltd,SME,1224683, 494.65 ,Travel & Subsistence,Administration
HM Land Registry,HM Land Registry,29/08/2018,Travel & Subsistence General Duty,Service Management - Application Processing,Corporate Travel Management (North of England) Ltd,SME,1224683," 1,300.30 ",Travel & Subsistence,Administration
HM Land Registry,HM Land Registry,29/08/2018,Travel & Subsistence General Duty,Register Development,Corporate Travel Management (North of England) Ltd,SME,1224683, 79.60 ,Travel & Subsistence,Administration
HM Land Registry,HM Land Registry,29/08/2018,Travel & Subsistence General Duty,LR Sports Council,Corporate Travel Management (North of England) Ltd,SME,1224683, 295.80 ,Travel & Subsistence,Administration
HM Land Registry,HM Land Registry,29/08/2018,Travel & Subsistence General Duty,HR Operations,Corporate Travel Management (North of England) Ltd,SME,1224683,-7.70 ,Travel & Subsistence,Administration
HM Land Registry,HM Land Registry,29/08/2018,Travel & Subsistence General Duty,IT Solutions,Corporate Travel Management (North of England) Ltd,SME,1224683, 295.60 ,Travel & Subsistence,Administration
HM Land Registry,HM Land Registry,29/08/2018,Travel & Subsistence General Duty,Service & Supplier Performance,Corporate Travel Management (North of England) Ltd,SME,1224683, 526.21 ,Travel & Subsistence,Administration
HM Land Registry,HM Land Registry,29/08/2018,Travel & Subsistence General Duty,IT Operations    ,Corporate Travel Management (North of England) Ltd,SME,1224683, 59.50 ,Travel & Subsistence,Administration
HM Land Registry,HM Land Registry,31/08/2018,Rates Payable,Croydon Office,Croydon Council,Large,1209135," 41,553.00 ",Rates Payable,Administration
HM Land Registry,HM Land Registry,02/08/2018,Professional Services,Dir: (Statutory) Digital Services,Deloitte MCS Ltd,Large,1221498," 274,509.16 ",Professional Services,Administration
HM Land Registry,HM Land Registry,02/08/2018,Professional Services,Dir: (Statutory) Digital Services,Deloitte MCS Ltd,Large,1221499," 55,871.24 ",Professional Services,Administration
HM Land Registry,HM Land Registry,02/08/2018,Professional Services,Dir: Information Systems,Deloitte MCS Ltd,Large,1221499," 179,815.07 ",Professional Services,Administration
HM Land Registry,HM Land Registry,28/08/2018,Rates Payable,Durham Office,Durham County Council,Large,1208028," 28,594.00 ",Rates Payable,Administration
HM Land Registry,HM Land Registry,29/08/2018,Document Exchange (DX),Central Facilities Management Team,DX Network Services Ltd,Large,1224849," 127,732.86 ",Document Exchange,Administration
HM Land Registry,HM Land Registry,28/08/2018,Electricity,Birkenhead Office,EDF Energy,Large,1224788," 6,221.82 ",Electricity,Administration
HM Land Registry,HM Land Registry,28/08/2018,Electricity,Croydon Office,EDF Energy,Large,1224788," 10,746.28 ",Electricity,Administration
HM Land Registry,HM Land Registry,28/08/2018,Electricity,Director of Information Systems,EDF Energy,Large,1224788," 68,789.66 ",Electricity,Administration
HM Land Registry,HM Land Registry,28/08/2018,Electricity,Durham Office,EDF Energy,Large,1224788," 6,134.33 ",Electricity,Administration
HM Land Registry,HM Land Registry,28/08/2018,Electricity,Fylde Office,EDF Energy,Large,1224788," 4,103.26 ",Electricity,Administration
HM Land Registry,HM Land Registry,28/08/2018,Electricity,Gloucester Computer Centre,EDF Energy,Large,1224788," 47,018.65 ",Electricity,Administration
HM Land Registry,HM Land Registry,28/08/2018,Electricity,Gloucester Office,EDF Energy,Large,1224788," 5,602.37 ",Electricity,Administration
HM Land Registry,HM Land Registry,28/08/2018,Electricity,Hull Office,EDF Energy,Large,1224788," 7,252.39 ",Electricity,Administration
HM Land Registry,HM Land Registry,28/08/2018,Electricity,Leicester Office,EDF Energy,Large,1224788," 5,214.33 ",Electricity,Administration
HM Land Registry,HM Land Registry,28/08/2018,Electricity,Nottingham Office,EDF Energy,Large,1224788," 8,446.76 ",Electricity,Administration
HM Land Registry,HM Land Registry,28/08/2018,Electricity,Telford Office,EDF Energy,Large,1224788," 4,991.04 ",Electricity,Administration
HM Land Registry,HM Land Registry,28/08/2018,Electricity,Wales Office,EDF Energy,Large,1224788," 6,568.39 ",Electricity,Administration
HM Land Registry,HM Land Registry,28/08/2018,Electricity,Weymouth Office,EDF Energy,Large,1224788," 6,306.66 ",Electricity,Administration
HM Land Registry,HM Land Registry,02/08/2018,Transport Hire of Cars and Vans,Central Facilities Management Team,Enterprise Rent-A-Car (UK) Ltd,Large,1222363," 21,392.73 ",Transport Hire of Cars and Vans,Administration
HM Land Registry,HM Land Registry,28/08/2018,Rates Payable,Fylde Office,Fylde Borough Council,Large,1208025," 17,625.00 ",Rates Payable,Administration
HM Land Registry,HM Land Registry,28/08/2018,Rates Payable,Gloucester Office,Gloucester City Council,Large,1209131," 28,885.00 ",Rates Payable,Administration
HM Land Registry,HM Land Registry,10/08/2018,Assets in the Course of Construction,Balance Sheet,Idox Software Ltd,SME,1222354," 77,252.40 ",Assets in the Course of Construction,Administration
HM Land Registry,HM Land Registry,29/08/2018,Waste Disposal,Birkenhead Office,ISS Facility Services,Large,1224840,"-1,923.72 ",Waste Disposal,Administration
HM Land Registry,HM Land Registry,29/08/2018,Waste Disposal,Croydon Office,ISS Facility Services,Large,1224840,"-1,077.48 ",Waste Disposal,Administration
HM Land Registry,HM Land Registry,29/08/2018,Waste Disposal,Director of Information Systems,ISS Facility Services,Large,1224840,"-2,919.68 ",Waste Disposal,Administration
HM Land Registry,HM Land Registry,29/08/2018,FM Managed Services,Director of Information Systems,ISS Facility Services,Large,1224840,-32.32 ,Facilities Managed Services,Administration
HM Land Registry,HM Land Registry,29/08/2018,Waste Disposal,Durham Office,ISS Facility Services,Large,1224840,"-1,813.80 ",Waste Disposal,Administration
HM Land Registry,HM Land Registry,29/08/2018,Vending Machine Consumables & Repairs,Durham Office,ISS Facility Services,Large,1224840, 12.66 ,Vending Machine Consumables & Repairs,Administration
HM Land Registry,HM Land Registry,29/08/2018,Waste Disposal,Fylde Office,ISS Facility Services,Large,1224840,"-1,187.00 ",Waste Disposal,Administration
HM Land Registry,HM Land Registry,29/08/2018,FM Managed Services,Fylde Office,ISS Facility Services,Large,1224840,-32.32 ,Facilities Managed Services,Administration
HM Land Registry,HM Land Registry,29/08/2018,Waste Disposal,Gloucester Computer Centre,ISS Facility Services,Large,1224840,-257.88 ,Waste Disposal,Administration
HM Land Registry,HM Land Registry,29/08/2018,Waste Disposal,Gloucester Office,ISS Facility Services,Large,1224840,"-2,520.40 ",Waste Disposal,Administration
HM Land Registry,HM Land Registry,29/08/2018,Waste Disposal,Hull Office,ISS Facility Services,Large,1224840,"-1,304.36 ",Waste Disposal,Administration
HM Land Registry,HM Land Registry,29/08/2018,FM Managed Services,Hull Office,ISS Facility Services,Large,1224840,-32.32 ,Facilities Managed Services,Administration
HM Land Registry,HM Land Registry,29/08/2018,Waste Disposal,Leicester Office,ISS Facility Services,Large,1224840,-929.20 ,Waste Disposal,Administration
HM Land Registry,HM Land Registry,29/08/2018,Vending Machine Consumables & Repairs,Leicester Office,ISS Facility Services,Large,1224840, 26.65 ,Vending Machine Consumables & Repairs,Administration
HM Land Registry,HM Land Registry,29/08/2018,FM Managed Services,Leicester Office,ISS Facility Services,Large,1224840,-230.96 ,Facilities Managed Services,Administration
HM Land Registry,HM Land Registry,29/08/2018,Waste Disposal,Nottingham Office,ISS Facility Services,Large,1224840,-576.44 ,Waste Disposal,Administration
HM Land Registry,HM Land Registry,29/08/2018,FM Managed Services,Nottingham Office,ISS Facility Services,Large,1224840,-230.96 ,Facilities Managed Services,Administration
HM Land Registry,HM Land Registry,29/08/2018,Waste Disposal,Peterborough Office,ISS Facility Services,Large,1224840,"-1,574.36 ",Waste Disposal,Administration
HM Land Registry,HM Land Registry,29/08/2018,FM Managed Services,Peterborough Office,ISS Facility Services,Large,1224840,-230.96 ,Facilities Managed Services,Administration
HM Land Registry,HM Land Registry,29/08/2018,Waste Disposal,Telford Office,ISS Facility Services,Large,1224840,"-1,077.32 ",Waste Disposal,Administration
HM Land Registry,HM Land Registry,29/08/2018,Pest Control,Wales Office,ISS Facility Services,Large,1224840,-72.84 ,Pest Control,Administration
HM Land Registry,HM Land Registry,29/08/2018,Waste Disposal,Wales Office,ISS Facility Services,Large,1224840,"-6,828.82 ",Waste Disposal,Administration
HM Land Registry,HM Land Registry,29/08/2018,Vending Machine Consumables & Repairs,Wales Office,ISS Facility Services,Large,1224840,-163.28 ,Vending Machine Consumables & Repairs,Administration
HM Land Registry,HM Land Registry,29/08/2018,Security Expenses,Wales Office,ISS Facility Services,Large,1224840,"-4,644.99 ",Security Expenses,Administration
HM Land Registry,HM Land Registry,29/08/2018,FM Ext Helpdesk,Wales Office,ISS Facility Services,Large,1224840,-74.12 ,Facilities External Helpdesk,Administration
HM Land Registry,HM Land Registry,29/08/2018,Facilities - Core Fee,Wales Office,ISS Facility Services,Large,1224840,"-2,800.92 ",Facilities - Core Fee,Administration
HM Land Registry,HM Land Registry,29/08/2018,Facilities - Quoted & Ad Hoc Works,Wales Office,ISS Facility Services,Large,1224840,-760.80 ,Facilities - Quoted & Ad Hoc Works,Administration
HM Land Registry,HM Land Registry,29/08/2018,Waste Disposal,Weymouth Office,ISS Facility Services,Large,1224840,-812.44 ,Waste Disposal,Administration
HM Land Registry,HM Land Registry,29/08/2018,Office Cleaning Expenses,Weymouth Office,ISS Facility Services,Large,1224840, 63.29 ,Office Cleaning Expenses,Administration
HM Land Registry,HM Land Registry,29/08/2018,FM Managed Services,Weymouth Office,ISS Facility Services,Large,1224840,-32.32 ,Facilities Managed Services,Administration
HM Land Registry,HM Land Registry,29/08/2018,Pest Control,Birkenhead Office,ISS Facility Services,Large,1224684, 40.71 ,Pest Control,Administration
HM Land Registry,HM Land Registry,29/08/2018,Waste Disposal,Birkenhead Office,ISS Facility Services,Large,1224684, 914.70 ,Waste Disposal,Administration
HM Land Registry,HM Land Registry,29/08/2018,Office Cleaning Expenses,Birkenhead Office,ISS Facility Services,Large,1224684," 4,584.95 ",Office Cleaning Expenses,Administration
HM Land Registry,HM Land Registry,29/08/2018,Vending Machine Consumables & Repairs,Birkenhead Office,ISS Facility Services,Large,1224684, 40.82 ,Vending Machine Consumables & Repairs,Administration
HM Land Registry,HM Land Registry,29/08/2018,Security Expenses,Birkenhead Office,ISS Facility Services,Large,1224684," 3,771.12 ",Security Expenses,Administration
HM Land Registry,HM Land Registry,29/08/2018,FM Managed Services,Birkenhead Office,ISS Facility Services,Large,1224684," 7,376.86 ",Facilities Managed Services,Administration
HM Land Registry,HM Land Registry,29/08/2018,FM Ext Helpdesk,Birkenhead Office,ISS Facility Services,Large,1224684, 223.65 ,Facilities External Helpdesk,Administration
HM Land Registry,HM Land Registry,29/08/2018,Grounds Maintenance,Birkenhead Office,ISS Facility Services,Large,1224684, 995.18 ,Grounds Maintenance,Administration
HM Land Registry,HM Land Registry,29/08/2018,Facilities - Core Fee,Birkenhead Office,ISS Facility Services,Large,1224684," 4,629.56 ",Facilities - Core Fee,Administration
HM Land Registry,HM Land Registry,29/08/2018,Facilities - Quoted & Ad Hoc Works,Birkenhead Office,ISS Facility Services,Large,1224684," 1,534.63 ",Facilities - Quoted & Ad Hoc Works,Administration
HM Land Registry,HM Land Registry,29/08/2018,FF&F:Maintenance,Birkenhead Office,ISS Facility Services,Large,1224684, 208.39 ,"Furniture, Fixtures & Fittings:Maintenance",Administration
HM Land Registry,HM Land Registry,29/08/2018,FM Managed Services,Coventry Office,ISS Facility Services,Large,1224684, 590.44 ,Facilities Managed Services,Administration
HM Land Registry,HM Land Registry,29/08/2018,FM Ext Helpdesk,Coventry Office,ISS Facility Services,Large,1224684, 18.21 ,Facilities External Helpdesk,Administration
HM Land Registry,HM Land Registry,29/08/2018,Facilities - Core Fee,Coventry Office,ISS Facility Services,Large,1224684, 92.47 ,Facilities - Core Fee,Administration
HM Land Registry,HM Land Registry,29/08/2018,Pest Control,Croydon Office,ISS Facility Services,Large,1224684, 35.63 ,Pest Control,Administration
HM Land Registry,HM Land Registry,29/08/2018,Waste Disposal,Croydon Office,ISS Facility Services,Large,1224684, 623.08 ,Waste Disposal,Administration
HM Land Registry,HM Land Registry,29/08/2018,Office Cleaning Expenses,Croydon Office,ISS Facility Services,Large,1224684," 3,113.09 ",Office Cleaning Expenses,Administration
HM Land Registry,HM Land Registry,29/08/2018,Vending Machine Consumables & Repairs,Croydon Office,ISS Facility Services,Large,1224684, 40.82 ,Vending Machine Consumables & Repairs,Administration
HM Land Registry,HM Land Registry,29/08/2018,Security Expenses,Croydon Office,ISS Facility Services,Large,1224684," 7,987.24 ",Security Expenses,Administration
HM Land Registry,HM Land Registry,29/08/2018,FM Managed Services,Croydon Office,ISS Facility Services,Large,1224684," 6,859.38 ",Facilities Managed Services,Administration
HM Land Registry,HM Land Registry,29/08/2018,FM Ext Helpdesk,Croydon Office,ISS Facility Services,Large,1224684, 242.10 ,Facilities External Helpdesk,Administration
HM Land Registry,HM Land Registry,29/08/2018,Grounds Maintenance,Croydon Office,ISS Facility Services,Large,1224684, 319.57 ,Grounds Maintenance,Administration
HM Land Registry,HM Land Registry,29/08/2018,Facilities - Core Fee,Croydon Office,ISS Facility Services,Large,1224684," 4,891.90 ",Facilities - Core Fee,Administration
HM Land Registry,HM Land Registry,29/08/2018,Facilities - Quoted & Ad Hoc Works,Croydon Office,ISS Facility Services,Large,1224684," 1,676.49 ",Facilities - Quoted & Ad Hoc Works,Administration
HM Land Registry,HM Land Registry,29/08/2018,FF&F:Maintenance,Croydon Office,ISS Facility Services,Large,1224684, 160.11 ,"Furniture, Fixtures & Fittings:Maintenance",Administration
HM Land Registry,HM Land Registry,29/08/2018,Pest Control,Director of Information Systems,ISS Facility Services,Large,1224684, 119.72 ,Pest Control,Administration
HM Land Registry,HM Land Registry,29/08/2018,Waste Disposal,Director of Information Systems,ISS Facility Services,Large,1224684," 1,654.65 ",Waste Disposal,Administration
HM Land Registry,HM Land Registry,29/08/2018,Office Cleaning Expenses,Director of Information Systems,ISS Facility Services,Large,1224684," 9,628.06 ",Office Cleaning Expenses,Administration
HM Land Registry,HM Land Registry,29/08/2018,Vending Machine Consumables & Repairs,Director of Information Systems,ISS Facility Services,Large,1224684, 163.28 ,Vending Machine Consumables & Repairs,Administration
HM Land Registry,HM Land Registry,29/08/2018,Security Expenses,Director of Information Systems,ISS Facility Services,Large,1224684," 25,292.76 ",Security Expenses,Administration
HM Land Registry,HM Land Registry,29/08/2018,FM Managed Services,Director of Information Systems,ISS Facility Services,Large,1224684," 14,303.94 ",Facilities Managed Services,Administration
HM Land Registry,HM Land Registry,29/08/2018,FM Ext Helpdesk,Director of Information Systems,ISS Facility Services,Large,1224684, 716.58 ,Facilities External Helpdesk,Administration
HM Land Registry,HM Land Registry,29/08/2018,Grounds Maintenance,Director of Information Systems,ISS Facility Services,Large,1224684," 2,690.23 ",Grounds Maintenance,Administration
HM Land Registry,HM Land Registry,29/08/2018,Facilities - Core Fee,Director of Information Systems,ISS Facility Services,Large,1224684," 22,381.20 ",Facilities - Core Fee,Administration
HM Land Registry,HM Land Registry,29/08/2018,Facilities - Quoted & Ad Hoc Works,Director of Information Systems,ISS Facility Services,Large,1224684," 3,823.68 ",Facilities - Quoted & Ad Hoc Works,Administration
HM Land Registry,HM Land Registry,29/08/2018,FF&F:Maintenance,Director of Information Systems,ISS Facility Services,Large,1224684, 499.56 ,"Furniture, Fixtures & Fittings:Maintenance",Administration
HM Land Registry,HM Land Registry,29/08/2018,Pest Control,Durham Office,ISS Facility Services,Large,1224684, 45.99 ,Pest Control,Administration
HM Land Registry,HM Land Registry,29/08/2018,Waste Disposal,Durham Office,ISS Facility Services,Large,1224684, 926.92 ,Waste Disposal,Administration
HM Land Registry,HM Land Registry,29/08/2018,Office Cleaning Expenses,Durham Office,ISS Facility Services,Large,1224684," 6,661.69 ",Office Cleaning Expenses,Administration
HM Land Registry,HM Land Registry,29/08/2018,Vending Machine Consumables & Repairs,Durham Office,ISS Facility Services,Large,1224684, 40.82 ,Vending Machine Consumables & Repairs,Administration
HM Land Registry,HM Land Registry,29/08/2018,Security Expenses,Durham Office,ISS Facility Services,Large,1224684," 6,199.45 ",Security Expenses,Administration
HM Land Registry,HM Land Registry,29/08/2018,FM Managed Services,Durham Office,ISS Facility Services,Large,1224684," 8,212.93 ",Facilities Managed Services,Administration
HM Land Registry,HM Land Registry,29/08/2018,FM Ext Helpdesk,Durham Office,ISS Facility Services,Large,1224684, 314.80 ,Facilities External Helpdesk,Administration
HM Land Registry,HM Land Registry,29/08/2018,Grounds Maintenance,Durham Office,ISS Facility Services,Large,1224684," 1,499.29 ",Grounds Maintenance,Administration
HM Land Registry,HM Land Registry,29/08/2018,Facilities - Core Fee,Durham Office,ISS Facility Services,Large,1224684," 8,261.08 ",Facilities - Core Fee,Administration
HM Land Registry,HM Land Registry,29/08/2018,Facilities - Quoted & Ad Hoc Works,Durham Office,ISS Facility Services,Large,1224684, 955.60 ,Facilities - Quoted & Ad Hoc Works,Administration
HM Land Registry,HM Land Registry,29/08/2018,FF&F:Maintenance,Durham Office,ISS Facility Services,Large,1224684, 285.66 ,"Furniture, Fixtures & Fittings:Maintenance",Administration
HM Land Registry,HM Land Registry,29/08/2018,Pest Control,Fylde Office,ISS Facility Services,Large,1224684, 52.02 ,Pest Control,Administration
HM Land Registry,HM Land Registry,29/08/2018,Waste Disposal,Fylde Office,ISS Facility Services,Large,1224684, 552.28 ,Waste Disposal,Administration
HM Land Registry,HM Land Registry,29/08/2018,Office Cleaning Expenses,Fylde Office,ISS Facility Services,Large,1224684," 3,947.15 ",Office Cleaning Expenses,Administration
HM Land Registry,HM Land Registry,29/08/2018,Vending Machine Consumables & Repairs,Fylde Office,ISS Facility Services,Large,1224684, 81.64 ,Vending Machine Consumables & Repairs,Administration
HM Land Registry,HM Land Registry,29/08/2018,Security Expenses,Fylde Office,ISS Facility Services,Large,1224684," 8,656.57 ",Security Expenses,Administration
HM Land Registry,HM Land Registry,29/08/2018,FM Managed Services,Fylde Office,ISS Facility Services,Large,1224684," 7,761.55 ",Facilities Managed Services,Administration
HM Land Registry,HM Land Registry,29/08/2018,FM Ext Helpdesk,Fylde Office,ISS Facility Services,Large,1224684, 237.97 ,Facilities External Helpdesk,Administration
HM Land Registry,HM Land Registry,29/08/2018,Grounds Maintenance,Fylde Office,ISS Facility Services,Large,1224684," 2,466.97 ",Grounds Maintenance,Administration
HM Land Registry,HM Land Registry,29/08/2018,Facilities - Core Fee,Fylde Office,ISS Facility Services,Large,1224684," 3,987.19 ",Facilities - Core Fee,Administration
HM Land Registry,HM Land Registry,29/08/2018,Facilities - Quoted & Ad Hoc Works,Fylde Office,ISS Facility Services,Large,1224684," 1,818.35 ",Facilities - Quoted & Ad Hoc Works,Administration
HM Land Registry,HM Land Registry,29/08/2018,FF&F:Maintenance,Fylde Office,ISS Facility Services,Large,1224684, 164.73 ,"Furniture, Fixtures & Fittings:Maintenance",Administration
HM Land Registry,HM Land Registry,29/08/2018,Pest Control,Gloucester Computer Centre,ISS Facility Services,Large,1224684, 33.85 ,Pest Control,Administration
HM Land Registry,HM Land Registry,29/08/2018,Waste Disposal,Gloucester Computer Centre,ISS Facility Services,Large,1224684, 192.11 ,Waste Disposal,Administration
HM Land Registry,HM Land Registry,29/08/2018,Office Cleaning Expenses,Gloucester Computer Centre,ISS Facility Services,Large,1224684," 2,015.58 ",Office Cleaning Expenses,Administration
HM Land Registry,HM Land Registry,29/08/2018,Vending Machine Consumables & Repairs,Gloucester Computer Centre,ISS Facility Services,Large,1224684, 40.82 ,Vending Machine Consumables & Repairs,Administration
HM Land Registry,HM Land Registry,29/08/2018,Security Expenses,Gloucester Computer Centre,ISS Facility Services,Large,1224684," 12,193.74 ",Security Expenses,Administration
HM Land Registry,HM Land Registry,29/08/2018,FM Managed Services,Gloucester Computer Centre,ISS Facility Services,Large,1224684," 5,897.72 ",Facilities Managed Services,Administration
HM Land Registry,HM Land Registry,29/08/2018,FM Ext Helpdesk,Gloucester Computer Centre,ISS Facility Services,Large,1224684, 236.46 ,Facilities External Helpdesk,Administration
HM Land Registry,HM Land Registry,29/08/2018,Grounds Maintenance,Gloucester Computer Centre,ISS Facility Services,Large,1224684, 332.96 ,Grounds Maintenance,Administration
HM Land Registry,HM Land Registry,29/08/2018,Facilities - Core Fee,Gloucester Computer Centre,ISS Facility Services,Large,1224684," 8,348.55 ",Facilities - Core Fee,Administration
HM Land Registry,HM Land Registry,29/08/2018,Facilities - Quoted & Ad Hoc Works,Gloucester Computer Centre,ISS Facility Services,Large,1224684, 335.30 ,Facilities - Quoted & Ad Hoc Works,Administration
HM Land Registry,HM Land Registry,29/08/2018,FF&F:Maintenance,Gloucester Computer Centre,ISS Facility Services,Large,1224684, 82.11 ,"Furniture, Fixtures & Fittings:Maintenance",Administration
HM Land Registry,HM Land Registry,29/08/2018,Pest Control,Gloucester Office,ISS Facility Services,Large,1224684, 44.18 ,Pest Control,Administration
HM Land Registry,HM Land Registry,29/08/2018,Waste Disposal,Gloucester Office,ISS Facility Services,Large,1224684," 1,078.15 ",Waste Disposal,Administration
HM Land Registry,HM Land Registry,29/08/2018,Office Cleaning Expenses,Gloucester Office,ISS Facility Services,Large,1224684," 7,254.90 ",Office Cleaning Expenses,Administration
HM Land Registry,HM Land Registry,29/08/2018,Vending Machine Consumables & Repairs,Gloucester Office,ISS Facility Services,Large,1224684, 40.82 ,Vending Machine Consumables & Repairs,Administration
HM Land Registry,HM Land Registry,29/08/2018,Security Expenses,Gloucester Office,ISS Facility Services,Large,1224684," 4,747.14 ",Security Expenses,Administration
HM Land Registry,HM Land Registry,29/08/2018,FM Managed Services,Gloucester Office,ISS Facility Services,Large,1224684," 2,472.21 ",Facilities Managed Services,Administration
HM Land Registry,HM Land Registry,29/08/2018,FM Ext Helpdesk,Gloucester Office,ISS Facility Services,Large,1224684, 242.92 ,Facilities External Helpdesk,Administration
HM Land Registry,HM Land Registry,29/08/2018,Grounds Maintenance,Gloucester Office,ISS Facility Services,Large,1224684, 845.67 ,Grounds Maintenance,Administration
HM Land Registry,HM Land Registry,29/08/2018,Facilities - Core Fee,Gloucester Office,ISS Facility Services,Large,1224684," 5,411.98 ",Facilities - Core Fee,Administration
HM Land Registry,HM Land Registry,29/08/2018,Facilities - Quoted & Ad Hoc Works,Gloucester Office,ISS Facility Services,Large,1224684," 2,450.25 ",Facilities - Quoted & Ad Hoc Works,Administration
HM Land Registry,HM Land Registry,29/08/2018,FF&F:Maintenance,Gloucester Office,ISS Facility Services,Large,1224684, 248.25 ,"Furniture, Fixtures & Fittings:Maintenance",Administration
HM Land Registry,HM Land Registry,29/08/2018,Pest Control,Hull Office,ISS Facility Services,Large,1224684, 84.23 ,Pest Control,Administration
HM Land Registry,HM Land Registry,29/08/2018,Waste Disposal,Hull Office,ISS Facility Services,Large,1224684, 631.05 ,Waste Disposal,Administration
HM Land Registry,HM Land Registry,29/08/2018,Office Cleaning Expenses,Hull Office,ISS Facility Services,Large,1224684," 4,440.48 ",Office Cleaning Expenses,Administration
HM Land Registry,HM Land Registry,29/08/2018,Vending Machine Consumables & Repairs,Hull Office,ISS Facility Services,Large,1224684, 81.64 ,Vending Machine Consumables & Repairs,Administration
HM Land Registry,HM Land Registry,29/08/2018,Security Expenses,Hull Office,ISS Facility Services,Large,1224684," 6,354.43 ",Security Expenses,Administration
HM Land Registry,HM Land Registry,29/08/2018,FM Managed Services,Hull Office,ISS Facility Services,Large,1224684," 7,696.88 ",Facilities Managed Services,Administration
HM Land Registry,HM Land Registry,29/08/2018,FM Ext Helpdesk,Hull Office,ISS Facility Services,Large,1224684, 265.47 ,Facilities External Helpdesk,Administration
HM Land Registry,HM Land Registry,29/08/2018,Grounds Maintenance,Hull Office,ISS Facility Services,Large,1224684," 1,505.80 ",Grounds Maintenance,Administration
HM Land Registry,HM Land Registry,29/08/2018,Facilities - Core Fee,Hull Office,ISS Facility Services,Large,1224684," 6,197.85 ",Facilities - Core Fee,Administration
HM Land Registry,HM Land Registry,29/08/2018,Facilities - Quoted & Ad Hoc Works,Hull Office,ISS Facility Services,Large,1224684," 2,514.73 ",Facilities - Quoted & Ad Hoc Works,Administration
HM Land Registry,HM Land Registry,29/08/2018,FF&F:Maintenance,Hull Office,ISS Facility Services,Large,1224684, 237.38 ,"Furniture, Fixtures & Fittings:Maintenance",Administration
HM Land Registry,HM Land Registry,29/08/2018,Pest Control,Leicester Office,ISS Facility Services,Large,1224684, 35.54 ,Pest Control,Administration
HM Land Registry,HM Land Registry,29/08/2018,Waste Disposal,Leicester Office,ISS Facility Services,Large,1224684, 495.95 ,Waste Disposal,Administration
HM Land Registry,HM Land Registry,29/08/2018,Office Cleaning Expenses,Leicester Office,ISS Facility Services,Large,1224684," 3,453.66 ",Office Cleaning Expenses,Administration
HM Land Registry,HM Land Registry,29/08/2018,Vending Machine Consumables & Repairs,Leicester Office,ISS Facility Services,Large,1224684, 40.82 ,Vending Machine Consumables & Repairs,Administration
HM Land Registry,HM Land Registry,29/08/2018,Security Expenses,Leicester Office,ISS Facility Services,Large,1224684," 5,672.27 ",Security Expenses,Administration
HM Land Registry,HM Land Registry,29/08/2018,FM Managed Services,Leicester Office,ISS Facility Services,Large,1224684," 1,628.21 ",Facilities Managed Services,Administration
HM Land Registry,HM Land Registry,29/08/2018,FM Ext Helpdesk,Leicester Office,ISS Facility Services,Large,1224684, 146.58 ,Facilities External Helpdesk,Administration
HM Land Registry,HM Land Registry,29/08/2018,Grounds Maintenance,Leicester Office,ISS Facility Services,Large,1224684, 392.98 ,Grounds Maintenance,Administration
HM Land Registry,HM Land Registry,29/08/2018,Facilities - Core Fee,Leicester Office,ISS Facility Services,Large,1224684," 3,811.85 ",Facilities - Core Fee,Administration
HM Land Registry,HM Land Registry,29/08/2018,Facilities - Quoted & Ad Hoc Works,Leicester Office,ISS Facility Services,Large,1224684," 1,399.22 ",Facilities - Quoted & Ad Hoc Works,Administration
HM Land Registry,HM Land Registry,29/08/2018,FF&F:Maintenance,Leicester Office,ISS Facility Services,Large,1224684, 148.51 ,"Furniture, Fixtures & Fittings:Maintenance",Administration
HM Land Registry,HM Land Registry,29/08/2018,Pest Control,Nottingham Office,ISS Facility Services,Large,1224684, 39.07 ,Pest Control,Administration
HM Land Registry,HM Land Registry,29/08/2018,Waste Disposal,Nottingham Office,ISS Facility Services,Large,1224684, 478.02 ,Waste Disposal,Administration
HM Land Registry,HM Land Registry,29/08/2018,Office Cleaning Expenses,Nottingham Office,ISS Facility Services,Large,1224684," 3,447.53 ",Office Cleaning Expenses,Administration
HM Land Registry,HM Land Registry,29/08/2018,Vending Machine Consumables & Repairs,Nottingham Office,ISS Facility Services,Large,1224684, 40.82 ,Vending Machine Consumables & Repairs,Administration
HM Land Registry,HM Land Registry,29/08/2018,Security Expenses,Nottingham Office,ISS Facility Services,Large,1224684," 4,576.81 ",Security Expenses,Administration
HM Land Registry,HM Land Registry,29/08/2018,FM Managed Services,Nottingham Office,ISS Facility Services,Large,1224684," 8,775.61 ",Facilities Managed Services,Administration
HM Land Registry,HM Land Registry,29/08/2018,FM Ext Helpdesk,Nottingham Office,ISS Facility Services,Large,1224684, 237.55 ,Facilities External Helpdesk,Administration
HM Land Registry,HM Land Registry,29/08/2018,Grounds Maintenance,Nottingham Office,ISS Facility Services,Large,1224684, 494.47 ,Grounds Maintenance,Administration
HM Land Registry,HM Land Registry,29/08/2018,Facilities - Core Fee,Nottingham Office,ISS Facility Services,Large,1224684," 4,807.33 ",Facilities - Core Fee,Administration
HM Land Registry,HM Land Registry,29/08/2018,Facilities - Quoted & Ad Hoc Works,Nottingham Office,ISS Facility Services,Large,1224684," 3,552.87 ",Facilities - Quoted & Ad Hoc Works,Administration
HM Land Registry,HM Land Registry,29/08/2018,FF&F:Maintenance,Nottingham Office,ISS Facility Services,Large,1224684, 195.35 ,"Furniture, Fixtures & Fittings:Maintenance",Administration
HM Land Registry,HM Land Registry,29/08/2018,Pest Control,Peterborough Office,ISS Facility Services,Large,1224684, 26.84 ,Pest Control,Administration
HM Land Registry,HM Land Registry,29/08/2018,Waste Disposal,Peterborough Office,ISS Facility Services,Large,1224684, 799.15 ,Waste Disposal,Administration
HM Land Registry,HM Land Registry,29/08/2018,Office Cleaning Expenses,Peterborough Office,ISS Facility Services,Large,1224684," 1,848.81 ",Office Cleaning Expenses,Administration
HM Land Registry,HM Land Registry,29/08/2018,Vending Machine Consumables & Repairs,Peterborough Office,ISS Facility Services,Large,1224684, 40.82 ,Vending Machine Consumables & Repairs,Administration
HM Land Registry,HM Land Registry,29/08/2018,Security Expenses,Peterborough Office,ISS Facility Services,Large,1224684," 2,971.63 ",Security Expenses,Administration
HM Land Registry,HM Land Registry,29/08/2018,FM Managed Services,Peterborough Office,ISS Facility Services,Large,1224684," 1,445.90 ",Facilities Managed Services,Administration
HM Land Registry,HM Land Registry,29/08/2018,FM Ext Helpdesk,Peterborough Office,ISS Facility Services,Large,1224684, 80.13 ,Facilities External Helpdesk,Administration
HM Land Registry,HM Land Registry,29/08/2018,Grounds Maintenance,Peterborough Office,ISS Facility Services,Large,1224684, 356.54 ,Grounds Maintenance,Administration
HM Land Registry,HM Land Registry,29/08/2018,Facilities - Core Fee,Peterborough Office,ISS Facility Services,Large,1224684," 1,445.01 ",Facilities - Core Fee,Administration
HM Land Registry,HM Land Registry,29/08/2018,Facilities - Quoted & Ad Hoc Works,Peterborough Office,ISS Facility Services,Large,1224684, 844.69 ,Facilities - Quoted & Ad Hoc Works,Administration
HM Land Registry,HM Land Registry,29/08/2018,FF&F:Maintenance,Peterborough Office,ISS Facility Services,Large,1224684, 70.53 ,"Furniture, Fixtures & Fittings:Maintenance",Administration
HM Land Registry,HM Land Registry,29/08/2018,Pest Control,Telford Office,ISS Facility Services,Large,1224684, 44.16 ,Pest Control,Administration
HM Land Registry,HM Land Registry,29/08/2018,Waste Disposal,Telford Office,ISS Facility Services,Large,1224684, 704.10 ,Waste Disposal,Administration
HM Land Registry,HM Land Registry,29/08/2018,Office Cleaning Expenses,Telford Office,ISS Facility Services,Large,1224684," 5,882.21 ",Office Cleaning Expenses,Administration
HM Land Registry,HM Land Registry,29/08/2018,Vending Machine Consumables & Repairs,Telford Office,ISS Facility Services,Large,1224684, 40.82 ,Vending Machine Consumables & Repairs,Administration
HM Land Registry,HM Land Registry,29/08/2018,Security Expenses,Telford Office,ISS Facility Services,Large,1224684," 4,128.32 ",Security Expenses,Administration
HM Land Registry,HM Land Registry,29/08/2018,FM Managed Services,Telford Office,ISS Facility Services,Large,1224684," 2,959.43 ",Facilities Managed Services,Administration
HM Land Registry,HM Land Registry,29/08/2018,FM Ext Helpdesk,Telford Office,ISS Facility Services,Large,1224684, 221.72 ,Facilities External Helpdesk,Administration
HM Land Registry,HM Land Registry,29/08/2018,Grounds Maintenance,Telford Office,ISS Facility Services,Large,1224684," 1,644.81 ",Grounds Maintenance,Administration
HM Land Registry,HM Land Registry,29/08/2018,Facilities - Core Fee,Telford Office,ISS Facility Services,Large,1224684," 4,598.39 ",Facilities - Core Fee,Administration
HM Land Registry,HM Land Registry,29/08/2018,Facilities - Quoted & Ad Hoc Works,Telford Office,ISS Facility Services,Large,1224684," 2,527.63 ",Facilities - Quoted & Ad Hoc Works,Administration
HM Land Registry,HM Land Registry,29/08/2018,FF&F:Maintenance,Telford Office,ISS Facility Services,Large,1224684, 245.07 ,"Furniture, Fixtures & Fittings:Maintenance",Administration
HM Land Registry,HM Land Registry,29/08/2018,Pest Control,Wales Office,ISS Facility Services,Large,1224684, 53.91 ,Pest Control,Administration
HM Land Registry,HM Land Registry,29/08/2018,Waste Disposal,Wales Office,ISS Facility Services,Large,1224684," 2,275.00 ",Waste Disposal,Administration
HM Land Registry,HM Land Registry,29/08/2018,Office Cleaning Expenses,Wales Office,ISS Facility Services,Large,1224684," 3,102.76 ",Office Cleaning Expenses,Administration
HM Land Registry,HM Land Registry,29/08/2018,Vending Machine Consumables & Repairs,Wales Office,ISS Facility Services,Large,1224684, 81.64 ,Vending Machine Consumables & Repairs,Administration
HM Land Registry,HM Land Registry,29/08/2018,Security Expenses,Wales Office,ISS Facility Services,Large,1224684," 5,587.03 ",Security Expenses,Administration
HM Land Registry,HM Land Registry,29/08/2018,FM Managed Services,Wales Office,ISS Facility Services,Large,1224684," 2,458.67 ",Facilities Managed Services,Administration
HM Land Registry,HM Land Registry,29/08/2018,FM Ext Helpdesk,Wales Office,ISS Facility Services,Large,1224684, 191.15 ,Facilities External Helpdesk,Administration
HM Land Registry,HM Land Registry,29/08/2018,Grounds Maintenance,Wales Office,ISS Facility Services,Large,1224684," 1,016.77 ",Grounds Maintenance,Administration
HM Land Registry,HM Land Registry,29/08/2018,Facilities - Core Fee,Wales Office,ISS Facility Services,Large,1224684," 4,691.58 ",Facilities - Core Fee,Administration
HM Land Registry,HM Land Registry,29/08/2018,Facilities - Quoted & Ad Hoc Works,Wales Office,ISS Facility Services,Large,1224684," 2,056.92 ",Facilities - Quoted & Ad Hoc Works,Administration
HM Land Registry,HM Land Registry,29/08/2018,FF&F:Maintenance,Wales Office,ISS Facility Services,Large,1224684, 169.10 ,"Furniture, Fixtures & Fittings:Maintenance",Administration
HM Land Registry,HM Land Registry,29/08/2018,Pest Control,Weymouth Office,ISS Facility Services,Large,1224684, 57.18 ,Pest Control,Administration
HM Land Registry,HM Land Registry,29/08/2018,Waste Disposal,Weymouth Office,ISS Facility Services,Large,1224684, 625.25 ,Waste Disposal,Administration
HM Land Registry,HM Land Registry,29/08/2018,Office Cleaning Expenses,Weymouth Office,ISS Facility Services,Large,1224684," 5,099.26 ",Office Cleaning Expenses,Administration
HM Land Registry,HM Land Registry,29/08/2018,Vending Machine Consumables & Repairs,Weymouth Office,ISS Facility Services,Large,1224684, 81.64 ,Vending Machine Consumables & Repairs,Administration
HM Land Registry,HM Land Registry,29/08/2018,Security Expenses,Weymouth Office,ISS Facility Services,Large,1224684," 5,236.61 ",Security Expenses,Administration
HM Land Registry,HM Land Registry,29/08/2018,FM Managed Services,Weymouth Office,ISS Facility Services,Large,1224684," 3,782.77 ",Facilities Managed Services,Administration
HM Land Registry,HM Land Registry,29/08/2018,FM Ext Helpdesk,Weymouth Office,ISS Facility Services,Large,1224684, 215.10 ,Facilities External Helpdesk,Administration
HM Land Registry,HM Land Registry,29/08/2018,Grounds Maintenance,Weymouth Office,ISS Facility Services,Large,1224684," 1,423.58 ",Grounds Maintenance,Administration
HM Land Registry,HM Land Registry,29/08/2018,Facilities - Core Fee,Weymouth Office,ISS Facility Services,Large,1224684," 5,574.39 ",Facilities - Core Fee,Administration
HM Land Registry,HM Land Registry,29/08/2018,Facilities - Quoted & Ad Hoc Works,Weymouth Office,ISS Facility Services,Large,1224684," 2,991.88 ",Facilities - Quoted & Ad Hoc Works,Administration
HM Land Registry,HM Land Registry,29/08/2018,FF&F:Maintenance,Weymouth Office,ISS Facility Services,Large,1224684, 244.94 ,"Furniture, Fixtures & Fittings:Maintenance",Administration
HM Land Registry,HM Land Registry,01/08/2018,Professional Services,Program: Local Land Charges,Kainos Software Ltd,Large,1222192," 332,757.55 ",Professional Services,Administration
HM Land Registry,HM Land Registry,09/08/2018,Professional Services,Dir: (Statutory) Digital Services,Kainos Software Ltd,Large,1222664," 145,857.20 ",Professional Services,Administration
HM Land Registry,HM Land Registry,09/08/2018,Professional Services,Dir: (Statutory) Digital Services,Kainos Software Ltd,Large,1222662," 498,730.00 ",Professional Services,Administration
HM Land Registry,HM Land Registry,10/08/2018,Professional Services,Dir: (Statutory) Digital Services,Kainos Software Ltd,Large,1223311," 570,926.20 ",Professional Services,Administration
HM Land Registry,HM Land Registry,13/08/2018,Professional Services,Dir: (Statutory) Digital Services,Kainos Software Ltd,Large,1223470," 110,068.20 ",Professional Services,Administration
HM Land Registry,HM Land Registry,13/08/2018,Professional Services,Dir: (Statutory) Digital Services,Kainos Software Ltd,Large,1223469," 138,740.69 ",Professional Services,Administration
HM Land Registry,HM Land Registry,13/08/2018,Professional Services,Dir: (Statutory) Digital Services,Kainos Software Ltd,Large,1223468," 36,384.40 ",Professional Services,Administration
HM Land Registry,HM Land Registry,10/08/2018,Rates Payable,Hull Office,Kingston Upon Hull City Council,Large,1209133," 14,790.00 ",Rates Payable,Administration
HM Land Registry,HM Land Registry,28/08/2018,Rates Payable,Leicester Office,Leicester City Council,Large,1208569," 22,062.00 ",Rates Payable,Administration
HM Land Registry,HM Land Registry,02/08/2018,Telecoms Equipment Maintenance,IS Service Delivery,Maintel,Large,1222360," 203,411.15 ",Telecoms Equipment Maintenance,Administration
HM Land Registry,HM Land Registry,28/08/2018,Rates Payable,Nottingham Office,Nottingham City Council,Large,1209145," 25,883.00 ",Rates Payable,Administration
HM Land Registry,HM Land Registry,28/08/2018,Rates Payable,Peterborough Office,Peterborough City Council,Large,1209130," 10,402.00 ",Rates Payable,Administration
HM Land Registry,HM Land Registry,28/08/2018,Rates Payable,Plymouth Office,Plymouth City Council,Large,1210538," 35,444.00 ",Rates Payable,Administration
HM Land Registry,HM Land Registry,02/08/2018,Major Property Maintenance Projects,Central Facilities Management Team,Prater Ltd,SME,1222362," 29,827.21 ",Major Property Maintenance Projects,Administration
HM Land Registry,HM Land Registry,23/08/2018,RFS Outsourced Services,Central RFS,Restore Plc,Large,1224177," 101,680.08 ",Regional File Store Outsourced Services,Administration
HM Land Registry,HM Land Registry,23/08/2018,RFS Outsourced Services,Central RFS,Restore Plc,Large,1224176," 205,876.08 ",Regional File Store Outsourced Services,Administration
HM Land Registry,HM Land Registry,15/08/2018,Letter Post,Birkenhead Office,Royal Mail,Large,1223717," 2,129.29 ",Letter Post,Administration
HM Land Registry,HM Land Registry,15/08/2018,Letter Post,Coventry Office,Royal Mail,Large,1223717," 1,106.61 ",Letter Post,Administration
HM Land Registry,HM Land Registry,15/08/2018,Letter Post,Croydon Office,Royal Mail,Large,1223717," 6,520.30 ",Letter Post,Administration
HM Land Registry,HM Land Registry,15/08/2018,Letter Post,Durham Office,Royal Mail,Large,1223717," 6,225.93 ",Letter Post,Administration
HM Land Registry,HM Land Registry,15/08/2018,Letter Post,Fylde Office,Royal Mail,Large,1223717," 4,116.54 ",Letter Post,Administration
HM Land Registry,HM Land Registry,15/08/2018,Letter Post,Gloucester Office,Royal Mail,Large,1223717," 2,053.80 ",Letter Post,Administration
HM Land Registry,HM Land Registry,15/08/2018,Letter Post,Hull Office,Royal Mail,Large,1223717," 3,004.29 ",Letter Post,Administration
HM Land Registry,HM Land Registry,15/08/2018,Letter Post,IS Service Delivery,Royal Mail,Large,1223717," 27,664.29 ",Letter Post,Administration
HM Land Registry,HM Land Registry,15/08/2018,Letter Post,Leicester Office,Royal Mail,Large,1223717," 1,427.46 ",Letter Post,Administration
HM Land Registry,HM Land Registry,15/08/2018,Letter Post,Nottingham Office,Royal Mail,Large,1223717," 2,449.24 ",Letter Post,Administration
HM Land Registry,HM Land Registry,15/08/2018,Letter Post,Peterborough Office,Royal Mail,Large,1223717," 1,915.27 ",Letter Post,Administration
HM Land Registry,HM Land Registry,15/08/2018,Letter Post,Plymouth Office,Royal Mail,Large,1223717, 850.46 ,Letter Post,Administration
HM Land Registry,HM Land Registry,15/08/2018,Letter Post,Telford Office,Royal Mail,Large,1223717," 1,152.84 ",Letter Post,Administration
HM Land Registry,HM Land Registry,15/08/2018,Letter Post,Wales Office,Royal Mail,Large,1223717," 15,111.34 ",Letter Post,Administration
HM Land Registry,HM Land Registry,15/08/2018,Letter Post,Weymouth Office,Royal Mail,Large,1223717," 1,527.77 ",Letter Post,Administration
HM Land Registry,HM Land Registry,28/08/2018,Rates Payable,Director of Information Systems,South Hams District Council,Large,1208573," 7,704.00 ",Rates Payable,Administration
HM Land Registry,HM Land Registry,28/08/2018,Rates Payable,Director of Information Systems,South Hams District Council,Large,1208571," 4,634.00 ",Rates Payable,Administration
HM Land Registry,HM Land Registry,10/08/2018,Computer Equipment Maintenance,IS Service Delivery,Specialist Computer Centres Plc - SCC,Large,1222581," 58,013.81 ",Computer Equipment Maintenance,Administration
HM Land Registry,HM Land Registry,17/08/2018,Major Property Maintenance Projects,Central Facilities Management Team,T J Hall Ltd,SME,1223740," 44,601.44 ",Major Property Maintenance Projects,Administration
HM Land Registry,HM Land Registry,28/08/2018,Rates Payable,Telford Office,Telford & Wrekin Council,Large,1208572," 25,463.00 ",Rates Payable,Administration
HM Land Registry,HM Land Registry,28/08/2018,Rates Payable,Gloucester Computer Centre,Tewkesbury Borough Council,Large,1208017," 11,419.00 ",Rates Payable,Administration
HM Land Registry,HM Land Registry,06/08/2018,Rates Payable,Weymouth Office,West Dorset District Council,Large,1210787," 5,374.00 ",Rates Payable,Administration
HM Land Registry,HM Land Registry,06/08/2018,Rates Payable,Weymouth Office,West Dorset District Council,Large,1210790," 4,807.00 ",Rates Payable,Administration
HM Land Registry,HM Land Registry,01/08/2018,Rates Payable,Birkenhead Office,Wirral Council,Large,1209134," 27,855.00 ",Rates Payable,Administration
HM Land Registry,HM Land Registry,13/08/2018,Scanning Contract,Forward Scanning,Xerox (UK) Ltd,Large,1223476," 110,677.73 ",Scanning Contract,Administration
